Cogmind - Beta 16 @@@ ROGUE MODE // 2025.11.16 @ 12:56:26 // Winter2019/RPGLIKE Player: Jaegerpls Result: Destroyed by Z6-1WB(R) with Subdweller Laser Performance ------------- Evolutions (0) 0 Regions Visited (2) 400 Robots Destroyed (30) 150 Value Destroyed (634) 634 Prototype IDs (2) 40 Alien Tech Used (0) 0 Bonus (0) 0 TOTAL SCORE: 1224 Bonus ------- None Cogmind --------- Core Integrity 0/600 Matter 280/300 Energy 232/250 System Corruption 0% Temperature Cool (6) Movement Flying (37) Location -10/Subcaves Parts ------- > --- POWER (1) -------- Ion Engine > --- PROPULSION (2) --- Flight Unit Flight Unit > --- UTILITY (4) ------ Improved Heat Sink Weight Redist. System Improved Terrain Scanner Targeting Computer > --- WEAPON (2) ------- Particle Gun Battle Cannon > --- INVENTORY (1) ---- Beam Cannon Peak State ------------ > --- POWER ------------ Ion Engine > --- PROPULSION ------- Flight Unit Flight Unit > --- UTILITY ---------- Improved Heat Sink Weight Redist. System Improved Terrain Scanner Targeting Computer > --- WEAPON ----------- Particle Gun Subdweller Laser > --- INVENTORY -------- Beam Cannon [Rating: 16] Favorites ----------- Power Ion Engine Engine Ion Engine Propulsion Flight Unit Wheel Compact Wheel Hover Unit Hover Unit Flight Unit Flight Unit Utility Improved Terrain Scanner Device Improved Terrain Scanner Processor Targeting Computer Weapon Particle Gun Energy Gun Particle Gun Energy Cannon Beam Cannon Ballistic Gun Assault Rifle Ballistic Cannon Battle Cannon Build | -11 -10 -10 ------- Run | Yrd Mat Sub Slots Evolved 5 | 4 . 1 Power . | . . . Propulsion 1 | 1 . . Utility 3 | 2 . 1 Weapon 1 | 1 . . Parts Attached 23 | 8 11 4 Power 2 | 1 1 . Engine 2 | 1 1 . Core . | . . . Reactor . | . . . Propulsion 8 | 3 3 2 Treads . | . . . Leg . | . . . Wheel 3 | 3 . . Hover 1 | . 1 . Flight 4 | . 2 2 Utility 6 | 2 4 . Device 5 | 2 3 . Storage . | . . . Processor 1 | . 1 . Hackware . | . . . Protection . | . . . Artifact . | . . . Weapon 7 | 2 3 2 Energy Gun 3 | 1 1 1 Energy Cannon 1 | . 1 . Ballistic Gun 2 | 1 1 . Ballistic Cannon 1 | . . 1 Launcher . | . . . Special Weapon . | . . . Impact Weapon . | . . . Slashing Weapon . | . . . Piercing Weapon . | . . . Special Melee Weapon . | . . . Unidentified Prototypes . | . . . Parts Lost . | . . . Power . | . . . Propulsion . | . . . Utility . | . . . Weapon . | . . . Highest Loss Streak . | . . . To Critical Strikes . | . . . Average Backups . | . . . Power . | . . . Propulsion . | . . . Utility . | . . . Weapon . | . . . Tool/Special . | . . . Unused Backups . | . . . Power . | . . . Propulsion . | . . . Utility . | . . . Weapon . | . . . Tool/Special . | . . . Average Slot Usage (%) 97 | . 94 100 Engine 11 | . 12 11 Wheel 4 | . 9 . Flight 18 | . 13 22 Device 29 | . 26 32 Processor 8 | . 6 11 Energy Gun 8 | . 4 12 Energy Cannon 2 | . 3 1 Ballistic Gun 7 | . 15 . Ballistic Cannon 4 | . . 8 Peak Build Rating 16 | 9 13 16 Average Rating 13 | 4 10 15 On Entrance 7 | . 9 13 Avg Prop Armor Cover (%) . | . . . Naked Turns . | . . . Heaviest Build 14 | 8 13 14 Greatest Support 37 | 37 37 19 Greatest Overweight (x) . | . . . Average Overweight (x) . | . . . Largest Inventory Capacity 1 | 1 1 1 Average Capacity 1 | 1 1 1 Most Carried 1 | 1 1 1 Average Carried . | . . . Final Capacity 1 | 1 1 1 Final Carried 1 | 1 1 1 Class Distribution -------------------- 78% | Scavenger-Mutant 21% | Mutant Dominant Class ---------------- Scavenger-Mutant | -10/Materials Scavenger-Mutant | -10/Subcaves Resources | -11 -10 -10 ----------- Run | Yrd Mat Sub Matter Collected 790 | 298 332 160 Remotely 277 | 143 134 . Salvage Created 967 | 134 516 317 Parts 48 | 7 24 17 Haulers Intercepted 2 | . 2 . Recyclers Shooed 1 | . 1 . Parts Field Recycled . | . . . Retrieved Matter . | . . . Parts Self-Destructed 7 | . . 7 Prevented . | . . . Parts Restored . | . . . Kills | -11 -10 -10 ------- Run | Yrd Mat Sub Combat Hostiles Destroyed 23 | . 11 12 Guns 18 | . 11 7 Cannons 5 | . . 5 Classes Destroyed 8 | 2 4 2 Tunneler 2 | 2 . . Hauler 2 | . 2 . Recycler 1 | 1 . . Watcher 2 | . 2 . Swarmer 11 | . 6 5 Grunt 5 | . 5 . Sentry 1 | . . 1 Subdweller 6 | . . 6 Best Kill Streak 4 | 2 3 4 Combat Bots Only 4 | . 3 4 Max Kills in Single Turn 2 | 1 1 2 Gunslinging 1 | . . 1 Exploded . | . . . Melee . | . . . Uniques/NPCs Destroyed . | . . . Combat | -11 -10 -10 -------- Run | Yrd Mat Sub Hostile Shots Fired 90 | . 36 54 Missed 34 | . 12 22 Hits 56 | . 24 32 Projectile 56 | . 24 32 AOE 1 | . . 1 Critical Strikes 1 | . 1 . Damage Taken 890 | . 257 633 Core 753 | . 210 543 Absorbed by Shields . | . . . Redirected to Core 461 | . 149 312 Core Remaining (%) 100 | 100 . . Volleys Fired 87 | 6 43 38 Largest 2 | 2 2 2 Hottest 125 | 60 125 125 Shots Fired 169 | 12 86 71 Gun 137 | 12 82 43 Cannon 32 | . 4 28 Launcher . | . . . Special . | . . . Kinetic 106 | 6 74 26 Thermal 63 | 6 12 45 Explosive . | . . . Electromagnetic . | . . . Robot Hit Streak 18 | 3 11 18 Robot Miss Streak 4 | 4 3 1 Penetration Max . | . . . Secondary Targets 7 | . 3 4 Max Gunslinging Chain 1 | . 1 1 Shots Hit Robots 127 | 6 58 63 Core Hits 48 | 4 24 20 Critical Kills . | . . . Critical Parts Destroyed . | . . . Critical Strikes 5 | . . 5 Burn 2 | . . 2 Blast 3 | . . 3 Melee Attacks . | . . . Impact . | . . . Slashing . | . . . Piercing . | . . . Sneak Attacks . | . . . Combat Hostiles . | . . . Follow-up Attacks . | . . . Damage Inflicted 2012 | 79 816 1117 Guns 1429 | 79 760 590 Cannons 583 | . 56 527 Explosions . | . . . Melee . | . . . Ramming . | . . . Kinetic 1157 | 37 629 491 Thermal 855 | 42 187 626 Explosive . | . . . Electromagnetic . | . . . Impact . | . . . Slashing . | . . . Piercing . | . . . Highest Corruption . | . . . Average Corruption . | . . . Corruption Purged . | . . . Corruption Blocked . | . . . Overload Shots . | . . . Overflow Damage . | . . . Projectiles . | . . . Explosions . | . . . Melee . | . . . Knockbacks 7 | . . 7 Impact . | . . . Kinetic 7 | . . 7 Secondary . | . . . Self-Inflicted Damage . | . . . Shots . | . . . Rammed . | . . . Targets Rammed . | . . . Kicked . | . . . Crushed . | . . . Highest Temperature 40 | 14 40 . Average Temperature 18 | 8 20 . Received Heat Transfer 174 | . 90 84 Siege Activations . | . . . Martial Activations . | . . . Shielding Activations . | . . . Robots Disrupted . | . . . Combat Hostiles . | . . . Robots Corrupted . | . . . Combat Hostiles . | . . . Parts Fried . | . . . Impact Corruptions . | . . . Robots Melted . | . . . Combat Hostiles . | . . . Parts Melted 2 | . . 2 Heat Transferred 1965 | 100 407 1458 Parts Sabotaged . | . . . Parts Stolen . | . . . Parts Stripped . | . . . Power Chain Reactions . | . . . Alert | -11 -10 -10 ------- Run | Yrd Mat Sub Maximum Alert Level . | . . . Low Security (%) 100 | 100 100 . Level 1 . | . . . Level 2 . | . . . Level 3 . | . . . Level 4 . | . . . Level 5 . | . . . High Security . | . . . Max Security . | . . . Peak Influence 180 | 10 180 . Initial . | . . . Average 62 | 1 68 . Influence Increases 463 | 15 313 135 Destroy 0b10 Robot/C 340 | . 220 120 Destroy 0b10 Robot/NC 35 | 15 20 . Destroy Leader 58 | . 58 . Successful Hack 14 | . 14 . Destroy Structure 1 | . 1 . Lose Combat Pursuer 15 | . . 15 Influence Decreases 463 | 15 216 232 Entered New Map 47 | . . 47 Time Decay 416 | 15 216 185 Squads Dispatched 2 | . 2 . Investigation 1 | . 1 . Extermination . | . . . Reinforcement 1 | . 1 . Assault . | . . . Garrison . | . . . Intercept . | . . . Searches Triggered . | . . . Construction Impeded . | . . . Haulers Reinforced . | . . . Active Scanning Responses . | . . . Cargo Convoy Interrupts . | . . . Stealth | -11 -10 -10 --------- Run | Yrd Mat Sub Distress Signals . | . . . Communications Jammed . | . . . Distress Signals . | . . . Times Spotted 28 | . 13 15 Peak Tracking Total 4 | . 3 4 Tactical Retreats 1 | . . 1 Traps | -11 -10 -10 ------- Run | Yrd Mat Sub Traps Triggered . | . . . Indirectly . | . . . Trap Hack Attempts . | . . . Triggered . | . . . Disarmed . | . . . Reprogrammed . | . . . Reused . | . . . Traps Extracted . | . . . Installed . | . . . Triggered . | . . . Machines | -11 -10 -10 ---------- Run | Yrd Mat Sub Machines Disabled . | . . . Max in Single Turn . | . . . Machines Repaired . | . . . Machines Dismantled . | . . . Machines Sabotaged . | . . . Overloaded Fab Kills . | . . . Hacking | -11 -10 -10 --------- Run | Yrd Mat Sub Machines Accessed 9 | . 9 . Terminals 7 | . 7 . Fabricators . | . . . Repair Stations . | . . . Recycling Units 2 | . 2 . Scanalyzers . | . . . Garrison Access . | . . . Total Hacks 20 | . 20 . Successful 15 | . 15 . Failed 5 | . 5 . Catastrophic 1 | . 1 . Database Lockouts . | . . . Manual 15 | . 15 . Terminals 16 | . 16 . Fabricators . | . . . Repair Stations . | . . . Recycling Units 4 | . 4 . Scanalyzers . | . . . Garrison Access . | . . . Terminal Hacks 4 | . 4 . Robot Analysis 1 | . 1 . Prototype ID Bank 1 | . 1 . Hauler Manifests 2 | . 2 . Fabricator Hacks . | . . . Repair Station Hacks . | . . . Recycling Unit Hacks 2 | . 2 . Report Inventory 2 | . 2 . Scanalyzer . | . . . Garrison Access Hacks . | . . . Unauthorized Hacks 9 | . 9 . Terminals 7 | . 7 . Botnet 2 | . 2 . Skim 5 | . 5 . Fabricators . | . . . Repair Stations . | . . . Recycling Units 2 | . 2 . Reject 2 | . 2 . Scanalyzers . | . . . Garrison Access . | . . . Data Cores Recovered . | . . . Used . | . . . Hacking Detections 8 | . 8 . Full Trace Events 1 | . 1 . Feedback Events . | . . . Feedback Blocked . | . . . Robot Schematics Acquired . | . . . Robots Built . | . . . Authchips . | . . . Time . | . . . Total Robot Build Rating . | . . . Part Schematics Acquired . | . . . Parts Built . | . . . Authchips . | . . . Time . | . . . Total Part Build Rating . | . . . Part Studies Acquired . | . . . Parts Repaired . | . . . Time . | . . . Parts Recycled . | . . . Recycled Matter . | . . . Retrieved Matter . | . . . Retrieved Components . | . . . Parts Scanalyzed . | . . . Part Schematics Acquired . | . . . Parts Damaged . | . . . Bothacking | -11 -10 -10 ------------ Run | Yrd Mat Sub Used RIF Installer . | . . . Robots Hacked . | . . . Non-combat . | . . . Combat . | . . . Robot Hacks Applied . | . . . Relay Couplers Released . | . . . Fabnet Peak Effective % . | . . . Robots Rewired . | . . . Allies Hacked . | . . . Hacks Repelled . | . . . Allies | -11 -10 -10 -------- Run | Yrd Mat Sub Total Allies . | . . . Largest Group . | . . . Highest-Rated Group . | . . . Highest-Rated Ally . | . . . Total Orders . | . . . Ally Attacks . | . . . Total Damage . | . . . Kills . | . . . Allies Corrupted . | . . . Allies Melted . | . . . Intel | -11 -10 -10 ------- Run | Yrd Mat Sub Active Infowar (turns) 1616 | 4 736 876 Terrain 1616 | 4 736 876 ECM 36 | . 36 . Robot Analysis Total 1 | . 1 . Derelict Logs Recovered . | . . . Drone Launches . | . . . Drone Recoveries . | . . . Exploration | -11 -10 -10 ------------- Run | Yrd Mat Sub Turns Passed 1679 | 67 736 876 Spaces Moved 1106 | 40 678 388 Core 1 | 1 . . Treads . | . . . Legs . | . . . Wheels 234 | 39 195 . Hover 53 | . 53 . Flight 818 | . 430 388 Fastest Speed 37 | 50 37 37 Average Speed 49 | 94 54 37 Slowest Speed 100 | 100 90 37 Overloaded Moves . | . . . Propulsion Burnouts . | . . . Robots Hopped 1 | . 1 . Potential Cave-ins . | . . . Cave-ins Triggered . | . . . Exploration Rate (%) 41 | 4 96 23 Regions Visited 2 Branch Regions 1 Pre-discovered Areas . | . . . Known Exits Taken . | . . . Unknown Exits Taken 2 | 1 1 . Scrap Searched . | . . . Spaces Dug . | . . . Terrain Destroyed 1 | . . 1 Melee . | . . . Projectile 1 | . . 1 AOE . | . . . Terrain Rammed . | . . . Walls Destroyed . | . . . Machines Disabled . | . . . Actions | -11 -10 -10 --------- Run | Yrd Mat Sub Total 2063 | 53 960 1050 Wait 823 | . 217 606 Move 1102 | 39 675 388 Hop 1 | . 1 . Pick Up 1 | . 1 . Fast Attach 18 | 7 9 2 Attach 1 | . . 1 Detach 3 | . 2 1 Swap 5 | 1 2 2 Drop 13 | . 10 3 Fire 87 | 6 43 38 Melee . | . . . Ram . | . . . Kick . | . . . Crush . | . . . Escape Stasis . | . . . Rewire . | . . . Trap . | . . . Miscellaneous 9 | . . 9 Route ------- -11/Scrapyard -10/Materials (discovered 5 exits: [*Mat x3] / [Min] / [*Sub]) -10/Subcaves (discovered 2 exits: [*Mat] / Rec) History --------- Turn | Location | Event 1 | -11/Scrapyard | Upgraded with Propulsion slot (x1) 1 | -11/Scrapyard | Upgraded with Utility slot (x2) 1 | -11/Scrapyard | Upgraded with Weapon slot (x1) 12 | -11/Scrapyard | Discovered new exit (range 15) 68 | -11/Scrapyard | Entered Materials 227 | -10/Materials | Discovered new exit (range 4) 310 | -10/Materials | Build established: Mutant 406 | -10/Materials | Discovered new exit (range 16) 443 | -10/Materials | Discovered new exit (range 8) 593 | -10/Materials | Discovered new exit (range 15) 597 | -10/Materials | Discovered new exit (range 13) 733 | -10/Materials | Learned 4 Recycling zone layouts 747 | -10/Materials | Learned location of 1 exit from Storage 760 | -10/Materials | Learned Storage trap positions 775 | -10/Materials | Learned 4 Subcaves zone layouts 800 | -10/Materials | Loaded intel: 9 trap records 804 | -10/Materials | Entered Subcaves 805 | -10/Subcaves | Identified exit to Recycling 806 | -10/Subcaves | Reached level 2 806 | -10/Subcaves | Upgraded with Utility slot (x1) 827 | -10/Subcaves | Build established: Scavenger-Mutant 1014 | -10/Subcaves | Core integrity fell below 50% 1133 | -10/Subcaves | Core integrity fell below 20% 1143 | -10/Subcaves | Discovered new exit (range 15) 1672 | -10/Subcaves | Ambushed by Subdweller buried in earth 1680 | -10/Subcaves | Destroyed by Z6-1WB(R) with Subdweller Laser Last Messages --------------- 01118_ Protomatter-23 decays. 01123_ YZ-583(R) Sub. Optics blasted off. 01123_ YZ-583(R) knocked back. 01132_ Destroyed Scrap Shield. 01135_ YZ-583(R) destroyed. 01138_ Acquired 4 matter. 01139_ Acquired 23 matter. 01139_ Acquired 27 matter. 01139_ Acquired 5 matter. 01140_ Acquired 4 matter. 01141_ Acquired 2 matter. 01143_ EXIT=FOUND 01299_ S-10 Pest destroyed. 01310_ Y-45 Defender destroyed. 01313_ Acquired 15 matter. 01315_ Lgt. Assault Rifle fries itself beyond repair. 01323_ Lgt. Armor Plating fries itself beyond repair. 01326_ 9B-QDL(z): "She is not going to be happy we haven't found any suitable candidates yet." 01673_ Z6-1WB(R): "ARGHSUB!" Map ----- +----------------------------------------------------+ | ? ### ### ################???????? | | ? ?## #### #### ###############???????? | | ??#### ##### #### ##############?#??????? | | ????######## #### ###############?#?????? | | ??? ####### ##### # ############??????? | | ???? ##### ###### ##############????? | | ??? #### ###### # ############?????? | | ???? ## ########## #############?????? | | ???? ######### #############????? | | ???? ###### #############?????? | | ???? ###### #########?##?????? | | ???? ###### ############????? | | ????? ####### #########?##????? | | ????? ########## #########??##???? | | ?????? ##### ### ##########??#???? | | ?????? ? #### ## ######?#####????? | | ??????? #### ## #########???????? | | ??????? ##### ## #####?####?##???? | | ????????? ####### ### ##########??????? | | ????????? ###### ## ######??##????#?? | | ?#??????# ######"""""## ####?##??#???#??? | | ""#??? ? ##? """"#### #####??#?###????? | | "??### """"""#### ###?####??##???? | | ##?## """""#####; ;#########??#??? | | ? ???# ####"""####;; ; ##?#??#???#??? | | ?? ??# #####""##" @ ; ####??###????? | | ??? ?# ######"" R; ###?#??#??#??? | | ???"" ## #####" % ; #####?#??????? | | ???? #"";; ; #######???#??? | | ?????? ###"; ;#######???????? | | ??? ## #### % ###?#####?##????? | | ?#????### ####;;=% #######?##?#????? | | ???#??#?## ;; ###############????? | | #??## ?### ##############?????? | | ???#? ## ###############?????? | | ???#?? ### # # ;###############?????? | | ????##### #######################?????? | | #??##?# ######### ############?????? | | #???### ####### ##########?##????? | | #??##### ###### #######?###?????? | | #??##??# ### ##### ###########?????? | | ?#?##??# #### ### ##?#######?????? | | ?#?????# #### ### ##?#######?????? | | ???##??# #?### ## ######?###?????? | | #?##???# ###### ############??????? | | ???#?### ####### #############?#????? | | #?#??#?## ######## #########?####?????? | | ?#?##?############ ###########??????? | | ?????##?########## ## ########???#????? | | ???###???######## ## ##########?????? | +----------------------------------------------------+ Best States ------------- Heat Dissipation 45 Energy Generation 10 Energy Capacity 250 Matter Stores 300 Matter Capacity 300 Sight Range 16 Robot Scan Range 6 Terrain Scan Range 16 Terrain Scan Density 410 ECM Strength 1 Additional Mass Support 6 Evasion (%) 62 Targeting Accuracy 5 Item Schematics ----------------- None Robot Schematics ------------------ None Fabricated ------------ Nothing Repaired ---------- Nothing Studied --------- None Alien Tech Used ----------------- None Achievements -------------- None Challenges ------------ None RPGLIKE | -11 -10 -10 --------- Run | Yrd Mat Sub Levels Raised 1 | . . 1 XP Earned 5950 | 3000 1350 1600 XP Spent 4465 | 2965 . 1500 Upgrades 15 | 11 . 4 Propulsion Slot 1 | 1 . . Utility Slot 3 | 2 . 1 Weapon Slot 1 | 1 . . Heat Dissipation 1 | 1 . . Mass Support 1 | 1 . . Inventory Capacity 1 | 1 . . Sensor Range 3 | 2 . 1 Terrain Scan Density 4 | 2 . 2 Protomatter Created 83 | . 10 73 Integrity Restored 150 | . . 150 Core 150 | . . 150 Protomatter Decayed 33 | . 10 23 Game ------ Seed ArcColdExoskeleton Manual? 0 Play Time 00:19:14 Cumulative 55.1 hours Start 2025.11.16 @ 12:16:47 End 2025.11.16 @ 12:56:26 Sessions 1 Manual Loads 0 Difficulty Rogue Special Mode Winter2019/RPGLIKE Game No. 53 Rogue 53 Adventurer 0 Explorer 0 Win Type - Total 0 Types 0/0/0/0/0/0/0/0/0/0 Lore% 50 Gallery% 34 Achievement% 32 Wizard Run 0 Options --------- Layout 0 ASCII 0 Keyboard 0 Movement Mouse Keybinds 0 Fullscreen 2 Font 24/Smallcaps Map View 76x50 Zoom Use 0% Tactical HUD 1 Map Filters NONE Filters NONE Steam 1 RUN: db343676-2e2e-42f1-a7c4-aac45b82e2ff